[Event "Titled Tuesday Blitz February 21 Late 2023"]
[White "Buchenau, Frank"]
[Black "De Souza, Cristiano Gomes"]
[WhiteFideId "4604350"]
[BlackFideId "2151758"]
[WhiteElo "2222"]
[BlackElo "2018"]
[Result "1-0"]
[Round "02"]
[TimeControl "180+2"]
[Date "2023.02.21"]
[WhiteClock "0:00:57"]
[BlackClock "0:01:08"]

1. e4 {[%clk 0:03:00]}  c5 {[%clk 0:02:59]} 2. Nf3 {[%clk 0:03:00]}  d6 {[%clk 0:02:59]} 3. Bb5+ {[%clk 0:02:58]}  Bd7 {[%clk 0:02:58]} 4. Bxd7+ {[%clk 0:02:58]}  Qxd7 {[%clk 0:02:57]} 5. c4 {[%clk 0:02:58]}  Nc6 {[%clk 0:02:54]} 6. Nc3 {[%clk 0:02:58]}  g6 {[%clk 0:02:51]} 7. d4 {[%clk 0:02:57]}  cxd4 {[%clk 0:02:49]} 8. Nxd4 {[%clk 0:02:58]}  Bg7 {[%clk 0:02:50]} 9. Be3 {[%clk 0:02:58]}  Nf6 {[%clk 0:02:50]} 10. f3 {[%clk 0:02:58]}  O-O {[%clk 0:02:50]} 11. O-O {[%clk 0:02:58]}  a5 {[%clk 0:02:49]} 12. Ndb5 {[%clk 0:02:49]}  Ne5 {[%clk 0:02:47]} 13. b3 {[%clk 0:02:47]}  Ne8 {[%clk 0:02:44]} 14. Nd5 {[%clk 0:02:44]}  Ra6 {[%clk 0:02:36]} 15. Rc1 {[%clk 0:02:37]}  e6 {[%clk 0:02:35]} 16. Nb6 {[%clk 0:02:27]}  Qc6 {[%clk 0:02:31]} 17. Na4 {[%clk 0:02:27]}  Nc7 {[%clk 0:02:26]} 18. f4 {[%clk 0:02:25]}  Nd7 {[%clk 0:02:21]} 19. Qe2 {[%clk 0:02:20]}  Nc5 {[%clk 0:02:19]} 20. Nxc5 {[%clk 0:02:14]}  dxc5 {[%clk 0:02:19]} 21. e5 {[%clk 0:01:58]}  Rb6 {[%clk 0:02:17]} 22. Nd6 {[%clk 0:01:57]}  Rd8 {[%clk 0:02:08]} 23. Rfd1 {[%clk 0:01:55]}  Bf8 {[%clk 0:02:07]} 24. Qf2 {[%clk 0:01:50]}  Na6 {[%clk 0:02:04]} 25. Nb5 {[%clk 0:01:48]}  Rxd1+ {[%clk 0:01:59]} 26. Rxd1 {[%clk 0:01:48]}  Qe8 {[%clk 0:01:58]} 27. Qd2 {[%clk 0:01:46]}  Nb4 {[%clk 0:01:53]} 28. a3 {[%clk 0:01:43]}  Nc6 {[%clk 0:01:48]} 29. Qd7 {[%clk 0:01:42]}  Qxd7 {[%clk 0:01:43]} 30. Rxd7 {[%clk 0:01:43]}  Nd4 {[%clk 0:01:43]} 31. Rd8 {[%clk 0:01:33]}  Kg7 {[%clk 0:01:39]} 32. Bxd4 {[%clk 0:01:16]}  cxd4 {[%clk 0:01:39]} 33. Kf2 {[%clk 0:01:10]}  a4 {[%clk 0:01:29]} 34. b4 {[%clk 0:01:09]}  Rc6 {[%clk 0:01:25]} 35. c5 {[%clk 0:01:08]}  b6 {[%clk 0:01:25]} 36. Nxd4 {[%clk 0:01:04]}  Rc7 {[%clk 0:01:22]} 37. c6 {[%clk 0:00:59]}  Be7 {[%clk 0:01:16]} 38. Rd7 {[%clk 0:00:57]}  Rxd7 {[%clk 0:01:07]} 39. cxd7 {[%clk 0:00:57]}  Bd8 {[%clk 0:01:08]} 40. Nc6 {[%clk 0:00:57]} 1-0


[Site "https://www.chess.com"]

[Event "Titled Tuesday Blitz February 21 Late 2023"]
[White "Mendez Machado, Andre"]
[Black "Kochetov, Andrey"]
[WhiteFideId "6603793"]
[BlackFideId "24130532"]
[WhiteElo "1974"]
[BlackElo "2165"]
[Result "0-1"]
[Round "02"]
[TimeControl "180+2"]
[Date "2023.02.21"]
[WhiteClock "0:00:03"]
[BlackClock "0:00:05"]

1. e4 {[%clk 0:03:00]}  c5 {[%clk 0:02:45]} 2. Nc3 {[%clk 0:03:00]}  Nc6 {[%clk 0:02:45]} 3. Bb5 {[%clk 0:02:59]}  Nd4 {[%clk 0:02:45]} 4. Nf3 {[%clk 0:02:59]}  e6 {[%clk 0:02:41]} 5. O-O {[%clk 0:02:53]}  a6 {[%clk 0:02:33]} 6. Bd3 {[%clk 0:02:52]}  Nc6 {[%clk 0:02:34]} 7. Nd5 {[%clk 0:02:51]}  g6 {[%clk 0:02:24]} 8. Re1 {[%clk 0:02:42]}  Bg7 {[%clk 0:02:24]} 9. c3 {[%clk 0:02:42]}  Nf6 {[%clk 0:02:03]} 10. Bc2 {[%clk 0:02:18]}  O-O {[%clk 0:01:55]} 11. Nxf6+ {[%clk 0:02:15]}  Bxf6 {[%clk 0:01:56]} 12. d4 {[%clk 0:02:08]}  cxd4 {[%clk 0:01:54]} 13. cxd4 {[%clk 0:02:08]}  d6 {[%clk 0:01:54]} 14. Bh6 {[%clk 0:02:02]}  Re8 {[%clk 0:01:54]} 15. h4 {[%clk 0:01:36]}  b5 {[%clk 0:01:51]} 16. e5 {[%clk 0:01:20]}  Bh8 {[%clk 0:01:26]} 17. Be4 {[%clk 0:00:56]}  Bb7 {[%clk 0:01:25]} 18. Rc1 {[%clk 0:00:55]}  Rc8 {[%clk 0:01:23]} 19. Ng5 {[%clk 0:00:46]}  dxe5 {[%clk 0:00:41]} 20. Qf3 {[%clk 0:00:40]}  f5 {[%clk 0:00:41]} 21. Bxc6 {[%clk 0:00:34]}  Rxc6 {[%clk 0:00:42]} 22. Rxc6 {[%clk 0:00:31]}  Qa8 {[%clk 0:00:31]} 23. Rec1 {[%clk 0:00:21]}  e4 {[%clk 0:00:21]} 24. Qc3 {[%clk 0:00:20]}  Bxc6 {[%clk 0:00:21]} 25. Qxc6 {[%clk 0:00:21]}  Qxc6 {[%clk 0:00:22]} 26. Rxc6 {[%clk 0:00:22]}  Bxd4 {[%clk 0:00:23]} 27. Rxe6 {[%clk 0:00:21]}  Ra8 {[%clk 0:00:16]} 28. Re7 {[%clk 0:00:19]}  Bxb2 {[%clk 0:00:15]} 29. Rxh7 {[%clk 0:00:18]}  a5 {[%clk 0:00:14]} 30. Rb7 {[%clk 0:00:18]}  b4 {[%clk 0:00:14]} 31. Ne6 {[%clk 0:00:17]}  Bc3 {[%clk 0:00:12]} 32. Nf4 {[%clk 0:00:17]}  a4 {[%clk 0:00:10]} 33. Nxg6 {[%clk 0:00:16]}  b3 {[%clk 0:00:10]} 34. a3 {[%clk 0:00:15]}  Bf6 {[%clk 0:00:05]} 35. Nf4 {[%clk 0:00:12]}  Ra6 {[%clk 0:00:05]} 36. Bg5 {[%clk 0:00:10]}  Be5 {[%clk 0:00:04]} 37. Nd5 {[%clk 0:00:10]}  Bd4 {[%clk 0:00:04]} 38. h5 {[%clk 0:00:09]}  Rc6 {[%clk 0:00:04]} 39. h6 {[%clk 0:00:09]}  Be5 {[%clk 0:00:04]} 40. h7+ {[%clk 0:00:08]}  Kh8 {[%clk 0:00:05]} 41. Nf4 {[%clk 0:00:06]}  b2 {[%clk 0:00:05]} 42. Nd5 {[%clk 0:00:03]}  Rc1+ {[%clk 0:00:04]} 43. Bxc1 {[%clk 0:00:03]}  bxc1=Q# {[%clk 0:00:05]} 0-1


[Site "https://www.chess.com"]

[Event "Titled Tuesday Blitz February 21 Late 2023"]
[White "Krstulovic, Alex"]
[Black "Hartikainen, Jarmo"]
[WhiteFideId "760056"]
[BlackFideId "503134"]
[WhiteElo "2428"]
[BlackElo "2108"]
[Result "1-0"]
[Round "02"]
[TimeControl "180+2"]
[Date "2023.02.21"]
[WhiteClock "0:02:31"]
[BlackClock "0:00:54"]

1. e4 {[%clk 0:03:00]}  c5 {[%clk 0:02:59]} 2. Nf3 {[%clk 0:03:00]}  e6 {[%clk 0:02:59]} 3. c3 {[%clk 0:03:00]}  d5 {[%clk 0:02:59]} 4. e5 {[%clk 0:02:59]}  d4 {[%clk 0:02:59]} 5. Bd3 {[%clk 0:02:55]}  Nc6 {[%clk 0:02:59]} 6. O-O {[%clk 0:02:55]}  h5 {[%clk 0:02:57]} 7. Re1 {[%clk 0:02:54]}  h4 {[%clk 0:02:56]} 8. h3 {[%clk 0:02:54]}  Be7 {[%clk 0:02:54]} 9. Na3 {[%clk 0:02:52]}  a6 {[%clk 0:02:52]} 10. cxd4 {[%clk 0:02:50]}  Nxd4 {[%clk 0:02:49]} 11. Be4 {[%clk 0:02:48]}  Nh6 {[%clk 0:02:40]} 12. d3 {[%clk 0:02:48]}  Nhf5 {[%clk 0:02:39]} 13. Nxd4 {[%clk 0:02:47]}  Nxd4 {[%clk 0:02:39]} 14. Qg4 {[%clk 0:02:47]}  g6 {[%clk 0:02:24]} 15. Be3 {[%clk 0:02:42]}  Nf5 {[%clk 0:02:17]} 16. Rac1 {[%clk 0:02:40]}  Nxe3 {[%clk 0:02:13]} 17. Rxe3 {[%clk 0:02:41]}  Bg5 {[%clk 0:01:34]} 18. f4 {[%clk 0:02:40]}  Qd4 {[%clk 0:01:29]} 19. Nc4 {[%clk 0:02:40]}  b5 {[%clk 0:01:19]} 20. Nd6+ {[%clk 0:02:40]}  Kd7 {[%clk 0:01:14]} 21. Re1 {[%clk 0:02:34]}  Ra7 {[%clk 0:00:54]} 22. fxg5 {[%clk 0:02:31]} 1-0


[Site "https://www.chess.com"]

[Event "Titled Tuesday Blitz February 21 Late 2023"]
[White "Garrido, Denis"]
[Black "Hernandez Sanchez, Elvis De La Caridad"]
[WhiteFideId "601217"]
[BlackFideId "6400353"]
[WhiteElo "2205"]
[BlackElo "2243"]
[Result "1/2-1/2"]
[Round "02"]
[TimeControl "180+2"]
[Date "2023.02.21"]
[WhiteClock "0:00:46"]
[BlackClock "0:00:24"]

1. c4 {[%clk 0:02:53]}  Nf6 {[%clk 0:02:57]} 2. Nc3 {[%clk 0:02:53]}  g6 {[%clk 0:02:56]} 3. d4 {[%clk 0:02:52]}  Bg7 {[%clk 0:02:55]} 4. Nf3 {[%clk 0:02:53]}  O-O {[%clk 0:02:54]} 5. Bf4 {[%clk 0:02:53]}  c5 {[%clk 0:02:53]} 6. e3 {[%clk 0:02:53]}  cxd4 {[%clk 0:02:52]} 7. exd4 {[%clk 0:02:53]}  d5 {[%clk 0:02:53]} 8. c5 {[%clk 0:02:52]}  Ne4 {[%clk 0:02:48]} 9. Qb3 {[%clk 0:02:39]}  Nxc3 {[%clk 0:02:29]} 10. Qxc3 {[%clk 0:02:37]}  Nc6 {[%clk 0:02:29]} 11. Bb5 {[%clk 0:02:32]}  Nxd4 {[%clk 0:02:11]} 12. Nxd4 {[%clk 0:02:30]}  e5 {[%clk 0:02:10]} 13. O-O {[%clk 0:02:23]}  exf4 {[%clk 0:02:07]} 14. Rad1 {[%clk 0:02:21]}  Qg5 {[%clk 0:01:57]} 15. Kh1 {[%clk 0:02:01]}  h5 {[%clk 0:01:55]} 16. b4 {[%clk 0:01:58]}  h4 {[%clk 0:01:55]} 17. h3 {[%clk 0:01:57]}  a6 {[%clk 0:01:50]} 18. Ba4 {[%clk 0:01:53]}  Bf5 {[%clk 0:01:46]} 19. Bb3 {[%clk 0:01:48]}  Rad8 {[%clk 0:01:43]} 20. Rfe1 {[%clk 0:01:43]}  f3 {[%clk 0:01:25]} 21. Qxf3 {[%clk 0:01:36]}  Be4 {[%clk 0:01:23]} 22. Qg4 {[%clk 0:01:35]}  Qxg4 {[%clk 0:01:08]} 23. hxg4 {[%clk 0:01:31]}  Rfe8 {[%clk 0:01:05]} 24. f3 {[%clk 0:01:28]}  Bd3 {[%clk 0:00:47]} 25. Rxe8+ {[%clk 0:01:14]}  Rxe8 {[%clk 0:00:48]} 26. Rxd3 {[%clk 0:01:14]}  Re1+ {[%clk 0:00:46]} 27. Kh2 {[%clk 0:01:13]}  Be5+ {[%clk 0:00:47]} 28. g3 {[%clk 0:01:13]}  Bxg3+ {[%clk 0:00:33]} 29. Kg2 {[%clk 0:01:12]}  Rb1 {[%clk 0:00:30]} 30. Rd2 {[%clk 0:01:01]}  Bf4 {[%clk 0:00:28]} 31. Re2 {[%clk 0:00:59]}  Kg7 {[%clk 0:00:25]} 32. c6 {[%clk 0:00:54]}  bxc6 {[%clk 0:00:24]} 33. Nxc6 {[%clk 0:00:54]}  h3+ {[%clk 0:00:23]} 34. Kxh3 {[%clk 0:00:53]}  Rh1+ {[%clk 0:00:22]} 35. Kg2 {[%clk 0:00:54]}  Rh2+ {[%clk 0:00:23]} 36. Kf1 {[%clk 0:00:54]}  Rh1+ {[%clk 0:00:23]} 37. Kf2 {[%clk 0:00:54]}  Rh2+ {[%clk 0:00:23]} 38. Kf1 {[%clk 0:00:54]}  Rh1+ {[%clk 0:00:24]} 39. Kg2 {[%clk 0:00:48]}  Rh2+ {[%clk 0:00:24]} 40. Kf1 {[%clk 0:00:46]} 1/2-1/2


[Site "https://www.chess.com"]

[Event "Titled Tuesday Blitz February 21 Late 2023"]
[White "Arencibia Monduy, Antonio"]
[Black "Dylag, Emilia"]
[WhiteFideId "3507939"]
[BlackFideId "21805172"]
[WhiteElo "2122"]
[BlackElo "2095"]
[Result "1-0"]
[Round "02"]
[TimeControl "180+2"]
[Date "2023.02.21"]
[WhiteClock "0:01:35"]
[BlackClock "0:01:24"]

1. e4 {[%clk 0:02:56]}  e5 {[%clk 0:02:40]} 2. Bc4 {[%clk 0:02:55]}  Nf6 {[%clk 0:02:39]} 3. d3 {[%clk 0:02:54]}  c6 {[%clk 0:02:39]} 4. Nf3 {[%clk 0:02:53]}  Qc7 {[%clk 0:02:35]} 5. O-O {[%clk 0:02:46]}  d5 {[%clk 0:02:35]} 6. Bb3 {[%clk 0:02:44]}  Bd6 {[%clk 0:02:34]} 7. Re1 {[%clk 0:02:40]}  O-O {[%clk 0:02:33]} 8. Nbd2 {[%clk 0:02:40]}  Bg4 {[%clk 0:02:32]} 9. h3 {[%clk 0:02:38]}  Bh5 {[%clk 0:02:32]} 10. Nf1 {[%clk 0:02:37]}  Nbd7 {[%clk 0:02:29]} 11. Ng3 {[%clk 0:02:37]}  Bg6 {[%clk 0:02:29]} 12. Nh4 {[%clk 0:02:34]}  Rfe8 {[%clk 0:02:28]} 13. Qf3 {[%clk 0:02:31]}  Nc5 {[%clk 0:02:20]} 14. Bg5 {[%clk 0:02:28]}  Re6 {[%clk 0:01:53]} 15. exd5 {[%clk 0:02:21]}  cxd5 {[%clk 0:01:52]} 16. Bxd5 {[%clk 0:02:19]}  Nxd5 {[%clk 0:01:51]} 17. Qxd5 {[%clk 0:02:20]}  h6 {[%clk 0:01:45]} 18. Bd2 {[%clk 0:02:19]}  Rd8 {[%clk 0:01:41]} 19. Qf3 {[%clk 0:02:15]}  Rf6 {[%clk 0:01:37]} 20. Qe2 {[%clk 0:02:11]}  Bh7 {[%clk 0:01:32]} 21. Bc3 {[%clk 0:02:02]}  Re8 {[%clk 0:01:25]} 22. d4 {[%clk 0:01:54]}  Na4 {[%clk 0:01:24]} 23. Qb5 {[%clk 0:01:35]} 1-0


[Site "https://www.chess.com"]

[Event "Titled Tuesday Blitz February 21 Late 2023"]
[White "reevecanada"]
[Black "Wang, Alexander J"]
[BlackFideId "30955270"]
[WhiteElo "2441"]
[BlackElo "1815"]
[Result "1-0"]
[Round "02"]
[TimeControl "180+2"]
[Date "2023.02.21"]
[WhiteClock "0:01:14"]
[BlackClock "0:00:15"]

1. e4 {[%clk 0:03:00]}  c5 {[%clk 0:02:58]} 2. Nf3 {[%clk 0:02:57]}  d6 {[%clk 0:02:57]} 3. d4 {[%clk 0:02:53]}  cxd4 {[%clk 0:02:56]} 4. Qxd4 {[%clk 0:02:54]}  Nc6 {[%clk 0:02:52]} 5. Qe3 {[%clk 0:02:54]}  Nf6 {[%clk 0:02:50]} 6. c4 {[%clk 0:02:53]}  g6 {[%clk 0:02:37]} 7. Nc3 {[%clk 0:02:51]}  Bg7 {[%clk 0:02:37]} 8. Be2 {[%clk 0:02:51]}  O-O {[%clk 0:02:36]} 9. O-O {[%clk 0:02:51]}  Be6 {[%clk 0:02:28]} 10. Rb1 {[%clk 0:02:50]}  a5 {[%clk 0:02:19]} 11. b3 {[%clk 0:02:48]}  Ng4 {[%clk 0:02:07]} 12. Qd2 {[%clk 0:02:47]}  Nge5 {[%clk 0:02:03]} 13. Bb2 {[%clk 0:02:46]}  Nxf3+ {[%clk 0:02:02]} 14. Bxf3 {[%clk 0:02:43]}  Qb6 {[%clk 0:01:57]} 15. Nd5 {[%clk 0:02:40]}  Bxd5 {[%clk 0:01:56]} 16. Bxg7 {[%clk 0:02:38]}  Kxg7 {[%clk 0:01:56]} 17. exd5 {[%clk 0:02:37]}  Ne5 {[%clk 0:01:55]} 18. Be4 {[%clk 0:02:36]}  Kg8 {[%clk 0:01:53]} 19. h3 {[%clk 0:02:33]}  Qc5 {[%clk 0:01:49]} 20. Kh2 {[%clk 0:02:31]}  a4 {[%clk 0:01:48]} 21. f4 {[%clk 0:02:30]}  Nd7 {[%clk 0:01:47]} 22. Rfc1 {[%clk 0:02:25]}  axb3 {[%clk 0:01:47]} 23. axb3 {[%clk 0:02:26]}  Nf6 {[%clk 0:01:45]} 24. Bf3 {[%clk 0:02:19]}  Rfc8 {[%clk 0:01:39]} 25. f5 {[%clk 0:02:18]}  Kg7 {[%clk 0:01:36]} 26. h4 {[%clk 0:02:15]}  Qa5 {[%clk 0:01:30]} 27. Qg5 {[%clk 0:02:13]}  h6 {[%clk 0:01:28]} 28. Qg3 {[%clk 0:02:13]}  Qd2 {[%clk 0:01:24]} 29. Re1 {[%clk 0:02:10]}  Re8 {[%clk 0:01:22]} 30. fxg6 {[%clk 0:02:09]}  fxg6 {[%clk 0:01:21]} 31. Re6 {[%clk 0:02:07]}  Ra2 {[%clk 0:01:15]} 32. Rbe1 {[%clk 0:02:06]}  Kf7 {[%clk 0:01:11]} 33. h5 {[%clk 0:01:46]}  g5 {[%clk 0:01:09]} 34. Be4 {[%clk 0:01:40]}  Nxe4 {[%clk 0:01:06]} 35. R1xe4 {[%clk 0:01:38]}  Qf2 {[%clk 0:01:01]} 36. Qg4 {[%clk 0:01:33]}  Kg7 {[%clk 0:00:33]} 37. Rxe7+ {[%clk 0:01:30]}  Rxe7 {[%clk 0:00:33]} 38. Rxe7+ {[%clk 0:01:29]}  Kf8 {[%clk 0:00:34]} 39. Rxb7 {[%clk 0:01:29]}  Qf4+ {[%clk 0:00:21]} 40. Qxf4+ {[%clk 0:01:28]}  gxf4 {[%clk 0:00:22]} 41. Kh3 {[%clk 0:01:28]}  Re2 {[%clk 0:00:17]} 42. Kg4 {[%clk 0:01:21]}  Re5 {[%clk 0:00:18]} 43. Kxf4 {[%clk 0:01:20]}  Rxh5 {[%clk 0:00:18]} 44. g4 {[%clk 0:01:20]}  Rh1 {[%clk 0:00:17]} 45. Rd7 {[%clk 0:01:18]}  Rb1 {[%clk 0:00:16]} 46. Rxd6 {[%clk 0:01:18]}  Rxb3 {[%clk 0:00:17]} 47. Rxh6 {[%clk 0:01:17]}  Kf7 {[%clk 0:00:15]} 48. Rc6 {[%clk 0:01:17]}  Rb1 {[%clk 0:00:14]} 49. g5 {[%clk 0:01:15]}  Rf1+ {[%clk 0:00:14]} 50. Ke5 {[%clk 0:01:14]}  Rg1 {[%clk 0:00:14]} 51. g6+ {[%clk 0:01:14]}  Ke7 {[%clk 0:00:14]} 52. Re6+ {[%clk 0:01:14]}  Kd7 {[%clk 0:00:14]} 53. c5 {[%clk 0:01:15]}  Re1+ {[%clk 0:00:14]} 54. Kf6 {[%clk 0:01:15]}  Rf1+ {[%clk 0:00:14]} 55. Kg7 {[%clk 0:01:15]}  Rd1 {[%clk 0:00:15]} 56. c6+ {[%clk 0:01:14]}  Kd8 {[%clk 0:00:14]} 57. d6 {[%clk 0:01:13]}  Rg1 {[%clk 0:00:13]} 58. c7+ {[%clk 0:01:12]}  Kd7 {[%clk 0:00:13]} 59. Re7+ {[%clk 0:01:12]}  Kc8 {[%clk 0:00:11]} 60. Re8+ {[%clk 0:01:11]}  Kd7 {[%clk 0:00:12]} 61. c8=Q+ {[%clk 0:01:11]}  Kxd6 {[%clk 0:00:13]} 62. Re6+ {[%clk 0:01:11]}  Kd5 {[%clk 0:00:13]} 63. Qc6+ {[%clk 0:01:12]}  Kd4 {[%clk 0:00:13]} 64. Re4+ {[%clk 0:01:12]}  Kd3 {[%clk 0:00:14]} 65. Qc4+ {[%clk 0:01:12]}  Kd2 {[%clk 0:00:14]} 66. Re2+ {[%clk 0:01:13]}  Kd1 {[%clk 0:00:15]} 67. Qc2# {[%clk 0:01:14]} 1-0


[Site "https://www.chess.com"]

[Event "Titled Tuesday Blitz February 21 Late 2023"]
[White "Zhang, Alan"]
[Black "Grot, Blazej"]
[WhiteFideId "30936870"]
[BlackFideId "21835845"]
[WhiteElo "2001"]
[BlackElo "1990"]
[Result "1-0"]
[Round "02"]
[TimeControl "180+2"]
[Date "2023.02.21"]
[WhiteClock "0:00:03"]
[BlackClock "0:00:04"]

1. e4 {[%clk 0:03:00]}  e5 {[%clk 0:02:58]} 2. Nf3 {[%clk 0:03:00]}  Nc6 {[%clk 0:02:58]} 3. Bb5 {[%clk 0:03:01]}  a6 {[%clk 0:02:58]} 4. Ba4 {[%clk 0:03:01]}  Nf6 {[%clk 0:02:54]} 5. O-O {[%clk 0:03:00]}  Be7 {[%clk 0:02:53]} 6. Re1 {[%clk 0:02:59]}  d6 {[%clk 0:02:50]} 7. d4 {[%clk 0:02:34]}  exd4 {[%clk 0:02:33]} 8. Nxd4 {[%clk 0:02:23]}  Bd7 {[%clk 0:02:33]} 9. Nxc6 {[%clk 0:02:07]}  Bxc6 {[%clk 0:02:34]} 10. Bxc6+ {[%clk 0:02:05]}  bxc6 {[%clk 0:02:34]} 11. b3 {[%clk 0:02:01]}  O-O {[%clk 0:02:28]} 12. Bb2 {[%clk 0:01:55]}  a5 {[%clk 0:02:24]} 13. a4 {[%clk 0:01:51]}  c5 {[%clk 0:02:18]} 14. Nd2 {[%clk 0:01:47]}  Qd7 {[%clk 0:02:17]} 15. Nc4 {[%clk 0:01:46]}  Rfe8 {[%clk 0:02:13]} 16. Qd3 {[%clk 0:00:54]}  h6 {[%clk 0:01:23]} 17. Rad1 {[%clk 0:00:51]}  Nh7 {[%clk 0:01:12]} 18. e5 {[%clk 0:00:39]}  Rad8 {[%clk 0:00:49]} 19. Nxa5 {[%clk 0:00:16]}  d5 {[%clk 0:00:23]} 20. Qg3 {[%clk 0:00:15]}  d4 {[%clk 0:00:17]} 21. Nc4 {[%clk 0:00:14]}  Qe6 {[%clk 0:00:15]} 22. c3 {[%clk 0:00:11]}  dxc3 {[%clk 0:00:07]} 23. Bxc3 {[%clk 0:00:12]}  Rb8 {[%clk 0:00:07]} 24. Bb2 {[%clk 0:00:09]}  Ng5 {[%clk 0:00:07]} 25. f4 {[%clk 0:00:08]}  Nh7 {[%clk 0:00:07]} 26. f5 {[%clk 0:00:03]}  Qxf5 {[%clk 0:00:06]} 27. e6 {[%clk 0:00:04]}  Bf6 {[%clk 0:00:04]} 28. exf7+ {[%clk 0:00:04]}  Kxf7 {[%clk 0:00:05]} 29. Qxc7+ {[%clk 0:00:04]}  Kg8 {[%clk 0:00:03]} 30. Rxe8+ {[%clk 0:00:03]}  Rxe8 {[%clk 0:00:03]} 31. Nd6 {[%clk 0:00:03]}  Qe6 {[%clk 0:00:01]} 32. Nxe8 {[%clk 0:00:01]}  Qxe8 {[%clk 0:00:02]} 33. Bxf6 {[%clk 0:00:01]}  Qe3+ {[%clk 0:00:02]} 34. Kh1 {[%clk 0:00:01]}  Nxf6 {[%clk 0:00:03]} 35. Qd8+ {[%clk 0:00:01]}  Ne8 {[%clk 0:00:03]} 36. Qd3 {[%clk 0:00:01]}  Qe7 {[%clk 0:00:03]} 37. Qd5+ {[%clk 0:00:01]}  Kh8 {[%clk 0:00:03]} 38. Rc1 {[%clk 0:00:02]}  Nf6 {[%clk 0:00:03]} 39. Qxc5 {[%clk 0:00:02]}  Qf8 {[%clk 0:00:04]} 40. Qxf8+ {[%clk 0:00:02]}  Kh7 {[%clk 0:00:04]} 41. Rc7 {[%clk 0:00:02]}  Nh5 {[%clk 0:00:05]} 42. Qf5+ {[%clk 0:00:02]}  Kg8 {[%clk 0:00:04]} 43. Qxh5 {[%clk 0:00:03]} 1-0


[Site "https://www.chess.com"]

[Event "Titled Tuesday Blitz February 21 Late 2023"]
[White "Poeta, Caio Medeiros"]
[Black "Curtis, John"]
[WhiteFideId "2142660"]
[BlackFideId "3200256"]
[WhiteElo "2088"]
[BlackElo "2292"]
[Result "1-0"]
[Round "02"]
[TimeControl "180+2"]
[Date "2023.02.21"]
[WhiteClock "0:01:34"]
[BlackClock "0:00:04"]

1. d4 {[%clk 0:02:59]}  Nf6 {[%clk 0:02:52]} 2. c4 {[%clk 0:03:00]}  e6 {[%clk 0:02:52]} 3. g3 {[%clk 0:02:58]}  d5 {[%clk 0:02:52]} 4. Nf3 {[%clk 0:02:57]}  Be7 {[%clk 0:02:52]} 5. Bg2 {[%clk 0:02:57]}  O-O {[%clk 0:02:52]} 6. O-O {[%clk 0:02:58]}  dxc4 {[%clk 0:02:52]} 7. Qc2 {[%clk 0:02:58]}  b5 {[%clk 0:02:50]} 8. a4 {[%clk 0:02:58]}  c6 {[%clk 0:02:48]} 9. axb5 {[%clk 0:02:58]}  cxb5 {[%clk 0:02:47]} 10. Ng5 {[%clk 0:02:58]}  h6 {[%clk 0:02:30]} 11. Nxf7 {[%clk 0:02:55]}  Rxf7 {[%clk 0:02:28]} 12. Bxa8 {[%clk 0:02:55]}  Qxd4 {[%clk 0:02:13]} 13. Be3 {[%clk 0:02:51]}  Qg4 {[%clk 0:02:10]} 14. Bf3 {[%clk 0:02:48]}  Qh3 {[%clk 0:02:08]} 15. Bg2 {[%clk 0:02:45]}  Qh5 {[%clk 0:02:07]} 16. Bxa7 {[%clk 0:02:37]}  Nbd7 {[%clk 0:01:47]} 17. Nc3 {[%clk 0:02:33]}  Ne5 {[%clk 0:01:26]} 18. Ne4 {[%clk 0:02:31]}  Nd5 {[%clk 0:01:19]} 19. Bc5 {[%clk 0:02:22]}  Bxc5 {[%clk 0:00:55]} 20. Nxc5 {[%clk 0:02:23]}  Rc7 {[%clk 0:00:56]} 21. Ne4 {[%clk 0:02:17]}  Bd7 {[%clk 0:00:44]} 22. Ra8+ {[%clk 0:02:15]}  Kf7 {[%clk 0:00:43]} 23. Nc3 {[%clk 0:02:05]}  Nf6 {[%clk 0:00:33]} 24. h3 {[%clk 0:02:02]}  Nc6 {[%clk 0:00:28]} 25. Nxb5 {[%clk 0:01:58]}  Nb4 {[%clk 0:00:25]} 26. Qa4 {[%clk 0:01:58]}  Bxb5 {[%clk 0:00:22]} 27. Qxb5 {[%clk 0:01:54]}  Nbd5 {[%clk 0:00:21]} 28. Qb8 {[%clk 0:01:52]}  Re7 {[%clk 0:00:18]} 29. e4 {[%clk 0:01:48]}  Nc7 {[%clk 0:00:15]} 30. e5 {[%clk 0:01:47]}  Nxa8 {[%clk 0:00:15]} 31. exf6 {[%clk 0:01:44]}  gxf6 {[%clk 0:00:15]} 32. Qxa8 {[%clk 0:01:43]}  Qc5 {[%clk 0:00:16]} 33. Qh8 {[%clk 0:01:41]}  f5 {[%clk 0:00:14]} 34. Qh7+ {[%clk 0:01:40]}  Ke8 {[%clk 0:00:15]} 35. Qxh6 {[%clk 0:01:41]}  c3 {[%clk 0:00:14]} 36. bxc3 {[%clk 0:01:40]}  Qxc3 {[%clk 0:00:13]} 37. Rc1 {[%clk 0:01:41]}  Qb2 {[%clk 0:00:04]} 38. Qh5+ {[%clk 0:01:40]}  Kd8 {[%clk 0:00:03]} 39. Rd1+ {[%clk 0:01:40]}  Rd7 {[%clk 0:00:03]} 40. Qg5+ {[%clk 0:01:39]}  Kc7 {[%clk 0:00:04]} 41. Qf4+ {[%clk 0:01:38]}  e5 {[%clk 0:00:04]} 42. Qc4+ {[%clk 0:01:38]}  Kd8 {[%clk 0:00:03]} 43. Qg8+ {[%clk 0:01:37]}  Kc7 {[%clk 0:00:04]} 44. Rxd7+ {[%clk 0:01:36]}  Kxd7 {[%clk 0:00:04]} 45. Qf7+ {[%clk 0:01:35]}  Kd6 {[%clk 0:00:04]} 46. Qxf5 {[%clk 0:01:35]}  Qb1+ {[%clk 0:00:04]} 47. Qxb1 {[%clk 0:01:34]} 1-0


[Site "https://www.chess.com"]

[Event "Titled Tuesday Blitz February 21 Late 2023"]
[White "Chernomordik, Pavel"]
[Black "Marin Ramirez, Gerardo"]
[WhiteFideId "2804530"]
[BlackFideId "3901068"]
[WhiteElo "2150"]
[BlackElo "2127"]
[Result "1-0"]
[Round "02"]
[TimeControl "180+2"]
[Date "2023.02.21"]
[WhiteClock "0:00:25"]
[BlackClock "0:00:01"]

1. e4 {[%clk 0:03:00]}  e5 {[%clk 0:02:55]} 2. Nf3 {[%clk 0:03:00]}  Nc6 {[%clk 0:02:55]} 3. Bb5 {[%clk 0:02:59]}  a6 {[%clk 0:02:54]} 4. Ba4 {[%clk 0:02:59]}  Nf6 {[%clk 0:02:52]} 5. Qe2 {[%clk 0:02:59]}  b5 {[%clk 0:02:45]} 6. Bb3 {[%clk 0:02:59]}  d6 {[%clk 0:02:45]} 7. a4 {[%clk 0:02:52]}  Rb8 {[%clk 0:02:04]} 8. axb5 {[%clk 0:02:50]}  axb5 {[%clk 0:02:05]} 9. c3 {[%clk 0:02:47]}  Be7 {[%clk 0:02:01]} 10. d4 {[%clk 0:02:46]}  exd4 {[%clk 0:01:16]} 11. cxd4 {[%clk 0:02:41]}  Bg4 {[%clk 0:01:16]} 12. Be3 {[%clk 0:02:24]}  O-O {[%clk 0:01:14]} 13. h3 {[%clk 0:02:11]}  Bh5 {[%clk 0:01:04]} 14. Nbd2 {[%clk 0:01:58]}  d5 {[%clk 0:00:57]} 15. e5 {[%clk 0:01:47]}  Ne4 {[%clk 0:00:56]} 16. g4 {[%clk 0:01:44]}  Bg6 {[%clk 0:00:47]} 17. h4 {[%clk 0:01:27]}  h5 {[%clk 0:00:37]} 18. g5 {[%clk 0:01:13]}  Nb4 {[%clk 0:00:33]} 19. Kf1 {[%clk 0:01:07]}  Ng3+ {[%clk 0:00:25]} 20. fxg3 {[%clk 0:01:06]}  Bd3 {[%clk 0:00:25]} 21. Kf2 {[%clk 0:01:01]}  Bxe2 {[%clk 0:00:24]} 22. Kxe2 {[%clk 0:01:02]}  Qd7 {[%clk 0:00:13]} 23. Rhf1 {[%clk 0:00:41]}  Qf5 {[%clk 0:00:08]} 24. Kf2 {[%clk 0:00:28]}  Ra8 {[%clk 0:00:02]} 25. Rac1 {[%clk 0:00:27]}  Nd3+ {[%clk 0:00:01]} 26. Kg2 {[%clk 0:00:27]}  Nxc1 {[%clk 0:00:02]} 27. Rxc1 {[%clk 0:00:27]}  Qd3 {[%clk 0:00:01]} 28. Bxd5 {[%clk 0:00:25]} 1-0


[Site "https://www.chess.com"]